Workbook

Sheet NOMINA
B2: =+IMSS!B6 -> EMPRESA "X"
B3: NÓMINA DE SUELDOS DEL PERÍODO X
B4: No. | C4: TRABAJADOR | D4: SALARIO DIARIO | E4: DÍAS TRABAJADOS | G4: PERCEPCIONES | P4: DEDUCCIONES | V4: NETO A PAGAR
G5: SALARIO DEL PERÍODO | H5: PREMIO DE ASISTENCIA | I5: PREMIO DE PUNTUALIDAD | J5: AYUDA DE DESPENSA | K5: TIEMPO EXTRA | L5: OTRAS PERCEPCIONES | M5: PRIMA DOMINICAL | N5: SUBSIDIO AL EMPLEO | O5: TOTAL | P5: ISR | Q5: CUOTAS IMSS | R5: CRÈDITOS INFONAVIT | S5: PRÉSTAMOS | T5: OTRAS DEDUCCIONES | U5: TOTAL
B6: 1 | D6: 368.81 | E6: 7 | G6: =+E6*D6 -> 2,581.67 | H6: 0 | I6: =+H6 -> 0 | J6: 0 | K6: 0 | L6: 0 | M6: 0 | N6: =HLOOKUP(B6,CALCULOISR,21,0) -> 0 | O6: =SUM(G6:N6) -> 2,581.67 | P6: =HLOOKUP(B6,CALCULOISR,20,0) -> 236.97 | Q6: =VLOOKUP(B6,IMSS,23,0) -> 293.46 | R6: 0 | S6: 0 | T6: 0 | U6: =SUM(P6:T6) -> 530.44 | V6: =+O6-U6 -> 2,051.23
B7: 2 | D7: 427.92 | E7: 7 | G7: =+E7*D7 -> 2,995.45 | H7: =VLOOKUP(B7,SDI,9,0)*E7*0.1 -> 315.14 | I7: 315.14 | J7: =+UMA*40%*E7 -> 269.42 | K7: =+D7/8*2*9 -> 962.82 | L7: 0 | M7: =+D7*0.25 -> 106.98 | N7: =HLOOKUP(B7,CALCULOISR,21,0) -> 0 | O7: 4,964.94 | P7: =HLOOKUP(B7,CALCULOISR,20,0) -> 677.50 | Q7: 80.16 | R7: 0 | S7: 0 | T7: 0 | U7: 757.65 | V7: 4,207.29
B8: 3 | D8: 140.00 | E8: 6 | G8: =+E8*D8 -> 840.00 | H8: 88.26 | I8: 88.26 | J8: 230.93 | K8: =+D8/8*2*9 -> 315.00 | L8: 0 | M8: =+D8*0.25 -> 35.00 | N8: 0 | O8: 1,597.44 | P8: 36.31 | Q8: 24.71 | R8: 0 | S8: 0 | T8: 0 | U8: 61.02 | V8: 1,536.42
B9: 4 | D9: 102.68 | E9: =3+(1/6*3) -> 3.5 | G9: 359.38 | H9: 37.71 | I9: 37.71 | J9: 134.71 | K9: 231.03 | L9: 0 | M9: 25.67 | N9: 53.11 | O9: 879.32 | P9: 0 | Q9: 18.10 | R9: 0 | S9: 0 | T9: 0 | U9: 18.10 | V9: 861.22
B10: 5 | D10: 600.00 | E10: 7 | G10: 4,200.00 | H10: 441.29 | I10: 441.29 | J10: 269.42 | K10: 1,350.00 | L10: 0 | M10: 150.00 | N10: 0 | O10: 6,851.99 | P10: 1,079.70 | Q10: 115.48 | R10: 0 | S10: 0 | T10: 0 | U10: 1,195.18 | V10: 5,656.82
B11: 6 | D11: 720.00 | E11: 7 | G11: 5,040.00 | H11: 529.55 | I11: 529.55 | J11: 269.42 | K11: 1,620.00 | L11: 0 | M11: 180.00 | N11: 0 | O11: 8,168.51 | P11: 1,382.52 | Q11: 140.19 | R11: 0 | S11: 0 | T11: 0 | U11: 1,522.71 | V11: 6,645.79
B12: 7 | D12: 840.00 | E12: 7 | G12: 5,880.00 | H12: 618.61 | I12: 618.61 | J12: 269.42 | K12: 1,890.00 | L12: 0 | M12: 210.00 | N12: 0 | O12: 9,486.63 | P12: 1,685.72 | Q12: 165.13 | R12: 0 | S12: 0 | T12: 0 | U12: 1,850.85 | V12: 7,635.78
B13: 8 | D13: 960.00 | E13: 7 | G13: 6,720.00 | H13: 706.98 | I13: 706.98 | J13: 269.42 | K13: 2,160.00 | L13: 0 | M13: 240.00 | N13: 0 | O13: 10,803.38 | P13: 2,030.19 | Q13: 189.87 | R13: 0 | S13: 0 | T13: 0 | U13: 2,220.06 | V13: 8,583.31
B14: TOTAL | D14: 0 | E14: 0 | G14: =SUM(G6:G13) -> 28,616.50 | H14: =SUM(H6:H13) -> 2,737.53 | I14: =SUM(I6:I13) -> 2,737.53 | J14: =SUM(J6:J13) -> 1,712.72 | K14: 8,528.85 | L14: 0 | M14: 947.65 | N14: =SUM(N6:N13) -> 53.11 | O14: =SUM(O6:O13) -> 45,333.88 | P14: =SUM(P6:P13) -> 7,128.91 | Q14: =SUM(Q6:Q13) -> 1,027.10 | R14: 0 | S14: =SUM(S6:S13) -> 0 | T14: =SUM(T6:T13) -> 0 | U14: =SUM(U6:U13) -> 8,156.01 | V14: =SUM(V6:V13) -> 37,177.87
C24: 2019-11-30
B25: INSIGNO INTERNACIONAL SA DE CV
B26: AGUINALDOS Y PRIMAVACACIONAL 2022
B27: No. | C27: TRABAJADOR | D27: FECHA INGRESO | E27: SALARIO DIARIO | G27: ANTIGÜEDAD (DIAS) | H27: ANTIGÜEDAD (AÑOS) | I27: VACACIONES (DIAS) | J27: PRIMA VACACIONAL | K27: TOTAL PRIMA VACACIONAL | L27: AGUINALDO (DIAS) | M27: AGUINALDO $ | N27: EXENTO (30.4 * UMAS) | O27: SUBTOTAL (RET. ISPT) | P27: LIM. INFERIOR | Q27: EXCEDENTE L.I. | R27: % S/ EXCEDENTE | S27: IMPTO. MARGINAL | T27: CUOTA FIJA | U27: TOTAL AGUIALDO
B29: 1 | C29: ERNESTO JAVIER BAEZ HERNANDEZ | D29: 2014-09-17 | E29: 233.83 | F29: 235.06 | G29: =NOMINA!$C$24-D29 -> 1,900 | H29: =G29/365 -> 5.21 | I29: 14 | J29: =I29*0.25 -> 3.5 | K29: =J29*E29 -> $818.41 | L29: 15 | M29: =F29*L29 -> 3,525.8 | N29: =30.4*UMA -> 2,925.1 | O29: =M29-N29 -> 600.7 | P29: 0.01 | Q29: =O29-P29 -> 600.7 | R29: 1.92% | S29: =R29*Q29 -> 11.5 | T29: 0 | U29: =M29-S29 -> $3,514.29
B30: 2 | C30: SAUL ELIZARRARAS RAMIREZ | D30: 2019-06-10 | E30: 816.67 | F30: 825.59 | G30: =NOMINA!$C$24-D30 -> 173 | H30: 0.47 | I30: 0 | J30: 0 | K30: 0 | L30: =(G30*15)/365 -> 7 | M30: 5,869.6 | N30: 2,925.1 | O30: =M30-N30 -> 2,944.5 | P30: 0.01 | Q30: =O30-P30 -> 2,944.5 | R30: 1.92% | S30: 56.5 | T30: 0 | U30: $5,813.04
B31: 3 | C31: JUVENTINO HERNANDEZ BLAS | D31: 2013-09-09 | E31: 321.43 | F31: 324.37 | G31: =NOMINA!$C$24-D31 -> 2,273 | H31: 6.23 | I31: 14 | J31: 3.5 | K31: $1,125.01 | L31: 15 | M31: 4,865.6 | N31: 2,925.1 | O31: =M31-N31 -> 1,940.5 | P31: 0.01 | Q31: =O31-P31 -> 1,940.5 | R31: 1.92% | S31: 37.3 | T31: 0 | U31: $4,828.29
B32: 4 | C32: LORENA GUADALUPE HERNANDEZ ZUÑIGA | D32: 2019-07-10 | E32: 216.67 | F32: 216.67 | G32: =NOMINA!$C$24-D32 -> 143 | H32: 0.39 | I32: 0 | J32: 0 | K32: 0 | L32: =(G32*15)/365 -> 6 | M32: 1,273.3 | N32: 2,925.1 | O32: 0 | P32: 0.01 | Q32: 0 | R32: 0% | S32: 0 | T32: 0 | U32: $1,273.31
B33: 5 | C33: FRANCISCO MEDINA PEREZ | D33: 2019-06-26 | E33: 171.43 | F33: 171.43 | G33: =NOMINA!$C$24-D33 -> 157 | H33: 0.43 | I33: 0 | J33: 0 | K33: 0 | L33: =(G33*15)/365 -> 6 | M33: 1,106.1 | N33: 2,925.1 | O33: 0 | P33: 0.01 | Q33: 0 | R33: 0% | S33: 0 | T33: 0 | U33: $1,106.08
B34: 6 | C34: JUAN MARCELO MUÑOZ CALDERILLA | D34: 2014-10-20 | E34: 343.62 | F34: 346.99 | G34: =NOMINA!$C$24-D34 -> 1,867 | H34: 5.12 | I34: 14 | J34: 3.5 | K34: $1,202.67 | L34: 15 | M34: 5,204.9 | N34: 2,925.1 | O34: =M34-N34 -> 2,279.8 | P34: 0.01 | Q34: =O34-P34 -> 2,279.8 | R34: 1.92% | S34: 43.8 | T34: 0 | U34: $5,161.14
B35: 7 | C35: EDGAR DAVID NIETO HERNANDEZ | D35: 2017-03-07 | E35: 246.85 | F35: 248.33 | G35: =NOMINA!$C$24-D35 -> 998 | H35: 2.73 | I35: 8 | J35: 2.0 | K35: $493.70 | L35: 15 | M35: 3,725.0 | N35: 2,925.1 | O35: =M35-N35 -> 799.9 | P35: 0.01 | Q35: =O35-P35 -> 799.9 | R35: 1.92% | S35: 15.4 | T35: 0 | U35: $3,709.59
B36: 8 | C36: JUAN JOSE RAMIREZ SALAZAR | D36: 2019-05-06 | E36: 300.00 | F36: 300.00 | G36: =NOMINA!$C$24-D36 -> 208 | H36: 0.57 | I36: 0 | J36: 0 | K36: 0 | L36: =(G36*15)/365 -> 9 | M36: 2,564.4 | N36: 2,925.1 | O36: 0 | P36: 0.01 | Q36: 0 | R36: 0% | S36: 0 | T36: 0 | U36: $2,564.38
B37: 9 | C37: JOSE RAFAEL ALEJANDRO ALMANZA | D37: 2019-10-14 | E37: 200.00 | F37: 200.00 | G37: =NOMINA!$C$24-D37 -> 47 | H37: 0.13 | I37: 0 | J37: 0 | K37: 0 | L37: =(G37*15)/365 -> 2 | M37: 386.3 | N37: 2,925.1 | O37: 0 | P37: 0.01 | Q37: 0 | R37: 0% | S37: 0 | T37: 0 | U37: $386.30
K39: =SUM(K29:K38) -> $3,639.78 | U39: =SUM(U29:U38) -> $28,356.42
C57: Tablas ISR 2019 Anuales
C58: Límite inferior | D58: Límite superior | E58: Cuota fija | G58: % sobre excedente de límite inferior
C59: 0.01 | D59: 6,942.20 | E59: 0 | G59: 1.92
C60: 6,942.21 | D60: 58,922.16 | E60: 133.28 | G60: 6.40
C61: 58,922.17 | D61: 103,550.44 | E61: 3,460.01 | G61: 10.88
C62: 103,550.45 | D62: 120,372.83 | E62: 8,315.57 | G62: 16.00
C63: 120,372.84 | D63: 144,119.23 | E63: 11,007.14 | G63: 17.92
C64: 144,119.24 | D64: 290,667.75 | E64: 15,262.49 | G64: 21.36
C65: 290,667.76 | D65: 458,132.29 | E65: 46,565.26 | G65: 23.52
C66: 458,132.30 | D66: 874,650.00 | E66: 85,952.92 | G66: 30.00
C67: 874,650.01 | D67: 1,166,200.00 | E67: 210,908.23 | G67: 32.00
C68: 1,166,200.01 | D68: 3,498,600.00 | E68: 304,204.21 | G68: 34.00
C69: 3,498,600.01 | D69: En adelante | E69: 1,097,220.21 | G69: 35.00

Sheet CALCULO ISR
B2: =+NOMINA!B2 -> EMPRESA "X"
B3: DETERMINACIÓN DEL ISR
A4: 1 | B4: CONCEPTO | C4: 1 | D4: 2 | E4: 3 | F4: 4 | G4: 5 | H4: 6 | I4: 7 | J4: 8 | K4: TOTAL
A5: 2 | B5: SALARIO DEL PERÍODO | C5: =VLOOKUP(C4,NOMINA,5,1) -> 0 | D5: 0 | E5: 0 | F5: 0 | G5: 0 | H5: 0 | I5: 0 | J5: 0 | K5: =SUM(C5:J5) -> 0
A6: 3 | B6: PREMIO DE ASISTENCIA | C6: =VLOOKUP(C4,NOMINA,6,1) -> 2,581.67 | D6: 2,995.45 | E6: 840.00 | F6: 359.38 | G6: 4,200.00 | H6: 5,040.00 | I6: 5,880.00 | J6: 6,720.00 | K6: =SUM(C6:J6) -> 28,616.50
A7: 4 | B7: PREMIO DE PUNTUALIDAD | C7: =VLOOKUP(C4,NOMINA,7,1) -> 0 | D7: 315.14 | E7: 88.26 | F7: 37.71 | G7: 441.29 | H7: 529.55 | I7: 618.61 | J7: 706.98 | K7: 2,737.53
A8: 5 | B8: AYUDA DE DESPENSA | C8: =VLOOKUP(C4,NOMINA,8,1) -> 0 | D8: 315.14 | E8: 88.26 | F8: 37.71 | G8: 441.29 | H8: 529.55 | I8: 618.61 | J8: 706.98 | K8: 2,737.53
A9: 6 | B9: TIEMPO EXTRA | C9: =VLOOKUP(C4,NOMINA,9,1) -> 0 | D9: 269.42 | E9: 230.93 | F9: 134.71 | G9: 269.42 | H9: 269.42 | I9: 269.42 | J9: 269.42 | K9: 1,712.72
A10: 7 | B10: OTRAS PERCEPCIONES | C10: =VLOOKUP(C4,NOMINA,10,1) -> 0 | D10: 962.82 | E10: 315.00 | F10: 231.03 | G10: 1,350.00 | H10: 1,620.00 | I10: 1,890.00 | J10: 2,160.00 | K10: 8,528.85
A11: 8 | B11: PRIMA DOMINICAL | C11: =VLOOKUP(C4,NOMINA,11,1) -> 0 | D11: 0 | E11: 0 | F11: 0 | G11: 0 | H11: 0 | I11: 0 | J11: 0 | K11: 0
A12: 9 | B12: TOTAL DE PERCEPCIONES | C12: =SUM(C4:C11) -> 2,582.67 | D12: =SUM(D4:D11) -> 4,859.96 | E12: 1,565.44 | F12: 804.54 | G12: 6,706.99 | H12: 7,994.51 | I12: 9,283.63 | J12: 10,571.38 | K12: 44,369.12
A13: 10 | B13: TIEMPO EXTRA EXENTO | C13: =IF(C9/2>UMA*5,UMA*5,C9/2) -> 0 | D13: 134.71 | E13: 115.46 | F13: 67.35 | G13: 134.71 | H13: 134.71 | I13: 134.71 | J13: 134.71 | K13: 0
A14: 11 | B14: PRIMA DOMINICAL EXENTA | C14: =IF(C11>UMA,UMA,C11) -> 0 | D14: 0 | E14: 0 | F14: 0 | G14: 0 | H14: 0 | I14: 0 | J14: 0 | K14: 0
A15: 12 | B15: BASE GRAVABLE | C15: =+C12-C13-C14 -> 2,582.67 | D15: =+D12-D13-D14 -> 4,725.25 | E15: =+E12-E13-E14 -> 1,449.98 | F15: 737.18 | G15: 6,572.28 | H15: 7,859.80 | I15: 9,148.92 | J15: 10,436.67 | K15: 0
A16: 13 | B16: LIMITE INFERIOR | C16: =VLOOKUP(C15,ISRS,1,1) -> 2,573.56 | D16: =VLOOKUP(D15,ISRS,1,1) -> 3,081.27 | E16: 1,259.73 | F16: 148.41 | G16: 6,214.47 | H16: 6,214.47 | I16: 6,214.47 | J16: 9,794.83 | K16: 0
A17: 14 | B17: EXCEDENTE DEL L.I. | C17: =+C15-C16 -> 9.11 | D17: =+D15-D16 -> 1,643.98 | E17: 190.25 | F17: 588.77 | G17: 357.81 | H17: 1,645.33 | I17: 2,934.45 | J17: 641.84 | K17: 0
A18: 15 | B18: % SOBRE EL EXCEDENTE | C18: =VLOOKUP(C15,ISRS,4,1) -> 17.92% | D18: =VLOOKUP(D15,ISRS,4,1) -> 21.36% | E18: 10.88% | F18: 6.40% | G18: 23.52% | H18: 23.52% | I18: 23.52% | J18: 30.00% | K18: 0
A19: 16 | B19: IMPUESTO MARGINAL | C19: =+C18*C17 -> 1.63 | D19: =+D18*D17 -> 351.16 | E19: 20.70 | F19: 37.68 | G19: 84.16 | H19: 386.98 | I19: 690.18 | J19: 192.55 | K19: 0
A20: 17 | B20: CUOTA FIJA | C20: =VLOOKUP(C15,ISRS,3,1) -> 235.34 | D20: =VLOOKUP(D15,ISRS,3,1) -> 326.34 | E20: 73.99 | F20: 2.87 | G20: 995.54 | H20: 995.54 | I20: 995.54 | J20: 1,837.64 | K20: 0
A21: 18 | B21: ISR DEL PERÍODO | C21: =+C20+C19 -> 236.97 | D21: =+D20+D19 -> 677.50 | E21: 94.69 | F21: 40.55 | G21: 1,079.70 | H21: 1,382.52 | I21: 1,685.72 | J21: 2,030.19 | K21: 0
A22: 19 | B22: SUBSIDIO AL EMPLEO | C22: =VLOOKUP(C15,SUBSIDIOS,3,1) -> 0 | D22: 0 | E22: 58.38 | F22: 93.66 | G22: 0 | H22: 0 | I22: 0 | J22: 0 | K22: 0
A23: 20 | B23: ISR A RETENER | C23: =IF(C21>C22,C21-C22,0) -> 236.97 | D23: =IF(D21>D22,D21-D22,0) -> 677.50 | E23: 36.31 | F23: 0 | G23: 1,079.70 | H23: 1,382.52 | I23: 1,685.72 | J23: 2,030.19 | K23: =SUM(C23:J23) -> 7,128.91
A24: 21 | B24: SUBSIDIO PAGADO | C24: =IF(C22>C21,C22-C21,0) -> 0 | D24: =IF(D22>D21,D22-D21,0) -> 0 | E24: 0 | F24: 53.11 | G24: 0 | H24: 0 | I24: 0 | J24: 0 | K24: 53.11

Sheet TARIFAS
B2: TARIFA MENSUAL ISR | G2: TARIFA QUINCENAL | L2: TARIFA SEMANAL
B3: Límite Inferior | C3: Límite Superior | D3: Cuota Fija | E3: % sobre excente de límite inferior | G3: Límite Inferior | H3: Límite Superior | I3: Cuota Fija | J3: % sobre excente de límite inferior | L3: Límite Inferior | M3: Límite Superior | N3: Cuota Fija | O3: % sobre excente de límite inferior
B4: 0.01 | C4: 644.58 | D4: 0 | E4: 1.92% | G4: 0.01 | H4: 318.00 | I4: =+D4/30.4*15 -> 0 | J4: 1.92% | L4: 0.01 | M4: 148.40 | N4: =+D4/30.4*7 -> 0 | O4: 1.92%
B5: 644.59 | C5: 5,470.92 | D5: 12.38 | E5: 6.40% | G5: 318.01 | H5: 2,699.40 | I5: 6.15 | J5: 6.40% | L5: 148.41 | M5: 1,259.72 | N5: 2.87 | O5: 6.40%
B6: 5,470.93 | C6: 9,614.66 | D6: 321.26 | E6: 10.88% | G6: 2,699.41 | H6: 4,744.05 | I6: 158.55 | J6: 10.88% | L6: 1,259.73 | M6: 2,213.89 | N6: 73.99 | O6: 10.88%
B7: 9,614.67 | C7: 11,176.62 | D7: 772.10 | E7: 16.00% | G7: 4,744.06 | H7: 5,514.75 | I7: 381.00 | J7: 16.00% | L7: 2,213.90 | M7: 2,573.55 | N7: 177.80 | O7: 16.00%
B8: 11,176.63 | C8: 13,381.47 | D8: 1,022.01 | E8: 17.92% | G8: 5,514.76 | H8: 6,602.70 | I8: 504.30 | J8: 17.92% | L8: 2,573.56 | M8: 3,081.26 | N8: 235.34 | O8: 17.92%
B9: 13,381.48 | C9: 26,988.50 | D9: 1,417.12 | E9: 21.36% | G9: 6,602.71 | H9: 13,316.70 | I9: 699.30 | J9: 21.36% | L9: 3,081.27 | M9: 6,214.46 | N9: 326.34 | O9: 21.36%
B10: 26,988.51 | C10: 42,537.58 | D10: 4,323.58 | E10: 23.52% | G10: 13,316.71 | H10: 20,988.90 | I10: 2,133.30 | J10: 23.52% | L10: 6,214.47 | M10: 9,794.82 | N10: 995.54 | O10: 23.52%
B11: 42,537.59 | C11: 81,211.25 | D11: 7,980.73 | E11: 30.00% | G11: 20,988.91 | H11: 40,071.30 | I11: 3,937.80 | J11: 30.00% | L11: 9,794.83 | M11: 18,699.94 | N11: 1,837.64 | O11: 30.00%
B12: 81,211.26 | C12: 108,281.67 | D12: 19,582.83 | E12: 32.00% | G12: 40,071.31 | H12: 53,428.50 | I12: 9,662.55 | J12: 32.00% | L12: 18,699.95 | M12: 24,933.30 | N12: 4,509.19 | O12: 32.00%
B13: 108,281.68 | C13: 324,845.01 | D13: 28,245.36 | E13: 34.00% | G13: 53,428.51 | H13: 160,285.35 | I13: 13,936.80 | J13: 34.00% | L13: 24,933.31 | M13: 74,799.83 | N13: 6,503.84 | O13: 34.00%
B14: 324,845.02 | C14: En adelante | D14: 101,876.90 | E14: 35.00% | G14: 160,285.36 | H14: En adelante | I14: 50,268.15 | J14: 35.00% | L14: 74,799.84 | M14: En adelante | N14: 23,458.47 | O14: 35.00%
B16: Para Ingresos de: | C16: Hasta Ingresos de: | D16: Cantidad de subsidio para el empleo mensual | G16: Para Ingresos de: | H16: Hasta Ingresos de: | I16: Cantidad de subsidio para el empleo mensual | L16: Para Ingresos de: | M16: Hasta Ingresos de: | N16: Cantidad de subsidio para el empleo mensual
B17: 0.01 | C17: 1,768.96 | D17: 407.02 | G17: 0.01 | H17: 872.85 | I17: 200.85 | L17: 0.01 | M17: 407.33 | N17: 93.73
B18: 1,768.97 | C18: 2,653.38 | D18: 406.83 | G18: 872.86 | H18: 1,309.20 | I18: 200.70 | L18: 407.34 | M18: 610.96 | N18: 93.66
B19: 2,653.39 | C19: 3,472.84 | D19: 406.62 | G19: 1,309.21 | H19: 1,713.60 | I19: 200.70 | L19: 610.97 | M19: 799.68 | N19: 93.66
B20: 3,472.85 | C20: 3,537.87 | D20: 392.77 | G20: 1,713.61 | H20: 1,745.70 | I20: 193.80 | L20: 799.69 | M20: 814.66 | N20: 90.44
B21: 3,537.88 | C21: 4,446.15 | D21: 382.46 | G21: 1,745.71 | H21: 2,193.75 | I21: 188.70 | L21: 814.67 | M21: 1,023.75 | N21: 88.06
B22: 4,446.16 | C22: 4,717.18 | D22: 354.23 | G22: 2,193.76 | H22: 2,327.55 | I22: 174.75 | L22: 1,023.76 | M22: 1,086.19 | N22: 81.55
B23: 4,717.19 | C23: 5,335.42 | D23: 324.87 | G23: 2,327.56 | H23: 2,632.65 | I23: 160.35 | L23: 1,086.20 | M23: 1,228.57 | N23: 74.83
B24: 5,335.43 | C24: 6,224.67 | D24: 294.63 | G24: 2,632.66 | H24: 3,071.40 | I24: 145.35 | L24: 1,228.58 | M24: 1,433.32 | N24: 67.83
B25: 6,224.68 | C25: 7,113.90 | D25: 253.54 | G25: 3,071.41 | H25: 3,510.15 | I25: 125.10 | L25: 1,433.33 | M25: 1,638.07 | N25: 58.38
B26: 7,113.91 | C26: 7,382.33 | D26: 217.61 | G26: 3,510.16 | H26: 3,642.60 | I26: 107.40 | L26: 1,638.08 | M26: 1,699.88 | N26: 50.12
B27: 7,382.34 | C27: En adelante | D27: 0 | G27: 3,642.61 | H27: En adelante | I27: =+D27/30.4*15 -> 0 | L27: 1,699.89 | M27: En adelante | N27: =+D27/30.4*7 -> 0

Sheet IMSS
B2: SALARIO MÍNIMO | F2: 172.87
B3: UMA DIARIA | F3: 96.22
B4: 3 UMAS | F4: =+F3*3 -> 288.66
B6: EMPRESA "X"
B7: DETERMINACIÓN DE CUOTAS OBRERO PATRONALES IMSS - INFONAVIT
B8: No. | C8: SALARIO DIARIO | D8: SALARIO DIARIO INTEGRADO | E8: DIAS TRABAJADOS | F8: SALARIO BASE DE COTIZACIÓN | G8: ENFERMEDADES Y MATERNIDAD | P8: INVALIDEZ Y VIDA | R8: GUARDERIAS | S8: RETIRO | T8: CESANTÍA Y VEJEZ | V8: RIESGO DE TRABAJO | W8: TOTAL | Y8: INFONAVIT | Z8: TOTAL
G9: CUOTA FIJA | H9: EXCEDENTE DE 3 UMAS | J9: PRESTACIONES EN DINERO | L9: RESERVA DE PENSIONADOS | N9: TOTAL
G10: PATRÓN | H10: PATRÓN | I10: TRABAJADOR | J10: PATRÓN | K10: TRABAJADOR | L10: PATRÓN | M10: TRABAJADOR | N10: PATRÓN | O10: TRABAJADOR | P10: PATRÒN | Q10: TRABAJADOR | R10: PATRÓN | S10: PATRÓN | T10: PATRÓN | U10: TRABAJADOR | V10: PATRÓN | W10: PATRÓN | X10: TRABAJADOR | Y10: PATRÓN | Z10: PATRÓN | AA10: TRABAJADOR
G11: 20.400% | H11: 1.100% | I11: 0.400% | J11: 0.700% | K11: 0.250% | L11: 1.050% | M11: 0.375% | P11: 1.750% | Q11: 0.650% | R11: 1.000% | S11: 2.000% | T11: 3.150% | U11: 1.125% | V11: 1.5984% | Y11: 5%
B12: 1 | C12: =VLOOKUP(B12,NOMINA,3,0) -> 368.81 | D12: =VLOOKUP(B12,SDI,9,1) -> 379.33 | E12: 31 | F12: =+E12*D12 -> 11,759.20 | G12: =+$G$11*E12*SM -> 1,093.23 | H12: =IF($D12>TUMA,($D12-TUMA)*H$11*$E12,0) -> 30.92 | I12: =IF($D12>TUMA,($D12-TUMA)*I$11*$E12,0) -> 11.24 | J12: =+J$11*$F12 -> 82.31 | K12: =+K$11*$F12 -> 29.40 | L12: =+L$11*$F12 -> 123.47 | M12: 44.10 | N12: =+G12+H12+J12+L12 -> 1,329.93 | O12: =+I12+K12+M12 -> 84.74 | P12: =+P$11*$F12 -> 205.79 | Q12: 76.43 | R12: =+R$11*$F12 -> 117.59 | S12: 235.18 | T12: 370.41 | U12: 132.29 | V12: 187.96 | W12: =+N12+P12+R12+S12+T12+V12 -> 2,446.87 | X12: =+O12+Q12+U12 -> 293.46 | Y12: =+Y$11*$F12 -> 587.96 | Z12: =+Y12+W12 -> 3,034.83 | AA12: =+X12 -> 293.46
B13: 2 | C13: 427.92 | D13: 450.20 | E13: 7 | F13: =+E13*D13 -> 3,151.38 | G13: =+$G$11*E13*SM -> 246.86 | H13: =IF($D13>TUMA,($D13-TUMA)*H$11*$E13,0) -> 12.44 | I13: 4.52 | J13: =+J$11*$F13 -> 22.06 | K13: 7.88 | L13: 33.09 | M13: 11.82 | N13: =+G13+H13+J13+L13 -> 314.45 | O13: =+I13+K13+M13 -> 24.22 | P13: 55.15 | Q13: 20.48 | R13: 31.51 | S13: 63.03 | T13: 99.27 | U13: 35.45 | V13: 50.37 | W13: =+N13+P13+R13+S13+T13+V13 -> 613.78 | X13: =+O13+Q13+U13 -> 80.16 | Y13: 157.57 | Z13: =+Y13+W13 -> 771.34 | AA13: =+X13 -> 80.16
B14: 3 | C14: 140.00 | D14: 147.10 | E14: 7 | F14: 1,029.67 | G14: 246.86 | H14: 0 | I14: 0 | J14: 7.21 | K14: 2.57 | L14: 10.81 | M14: 3.86 | N14: 264.88 | O14: 6.44 | P14: 18.02 | Q14: 6.69 | R14: 10.30 | S14: 20.59 | T14: 32.43 | U14: 11.58 | V14: 16.46 | W14: 362.68 | X14: 24.71 | Y14: 51.48 | Z14: 414.16 | AA14: 24.71
B15: 4 | C15: 102.68 | D15: 107.74 | E15: 7 | F15: 754.21 | G15: 246.86 | H15: 0 | I15: 0 | J15: 5.28 | K15: 1.89 | L15: 7.92 | M15: 2.83 | N15: 260.06 | O15: 4.71 | P15: 13.20 | Q15: 4.90 | R15: 7.54 | S15: 15.08 | T15: 23.76 | U15: 8.48 | V15: 12.06 | W15: 331.69 | X15: 18.10 | Y15: 37.71 | Z15: 369.40 | AA15: 18.10
B16: 5 | C16: 600.00 | D16: 630.41 | E16: 7 | F16: 4,412.88 | G16: 246.86 | H16: 26.31 | I16: 9.57 | J16: 30.89 | K16: 11.03 | L16: 46.34 | M16: 16.55 | N16: 350.40 | O16: 37.15 | P16: 77.23 | Q16: 28.68 | R16: 44.13 | S16: 88.26 | T16: 139.01 | U16: 49.64 | V16: 70.54 | W16: 769.55 | X16: 115.48 | Y16: 220.64 | Z16: 990.20 | AA16: 115.48
B17: 6 | C17: 720.00 | D17: 756.49 | E17: 7 | F17: 5,295.45 | G17: 246.86 | H17: 36.02 | I17: 13.10 | J17: 37.07 | K17: 13.24 | L17: 55.60 | M17: 19.86 | N17: 375.55 | O17: 46.20 | P17: 92.67 | Q17: 34.42 | R17: 52.95 | S17: 105.91 | T17: 166.81 | U17: 59.57 | V17: 84.64 | W17: 878.54 | X17: 140.19 | Y17: 264.77 | Z17: 1,143.31 | AA17: 140.19
B18: 7 | C18: 840.00 | D18: 883.73 | E18: 7 | F18: 6,186.08 | G18: 246.86 | H18: 45.82 | I18: 16.66 | J18: 43.30 | K18: 15.47 | L18: 64.95 | M18: 23.20 | N18: 400.93 | O18: 55.32 | P18: 108.26 | Q18: 40.21 | R18: 61.86 | S18: 123.72 | T18: 194.86 | U18: 69.59 | V18: 98.88 | W18: 988.51 | X18: 165.13 | Y18: 309.30 | Z18: 1,297.82 | AA18: 165.13
B19: 8 | C19: 960.00 | D19: 1,009.97 | E19: 7 | F19: 7,069.81 | G19: 246.86 | H19: 55.54 | I19: 20.20 | J19: 49.49 | K19: 17.67 | L19: 74.23 | M19: 26.51 | N19: 426.12 | O19: 64.38 | P19: 123.72 | Q19: 45.95 | R19: 70.70 | S19: 141.40 | T19: 222.70 | U19: 79.54 | V19: 113.00 | W19: 1,097.64 | X19: 189.87 | Y19: 353.49 | Z19: 1,451.13 | AA19: 189.87
B21: 1 | C21: 2 | D21: 3 | E21: 4 | F21: 5 | G21: 6 | H21: 7 | I21: 8 | J21: 9 | K21: 10 | L21: 11 | M21: 12 | N21: 13 | O21: 14 | P21: 15 | Q21: 16 | R21: 17 | S21: 18 | T21: 19 | U21: 20 | V21: 21 | W21: 22 | X21: 23 | Y21: 24 | Z21: 25 | AA21: 26

Sheet SDI
B2: FECHA ACTUAL | D2: =TODAY() -> 2022-01-27
B4: =+IMSS!B6 -> EMPRESA "X"
B5: DETERMINACIÓN DEL SALARIO DIARIO INTEGRADO
B6: No. | C6: SALARIO DIARIO | D6: FECHA DE INGRESO | E6: ANTIGÜEDAD (AÑOS) | F6: DÍAS DE VACACIONES | G6: PRIMA VACACIONAL | H6: DÍAS DE AGUINALDO | I6: FACTOR DE INTEGRACIÓN | J6: SALARIO DIARIO INTEGRADO
B7: 1 | C7: 360.56 | D7: 2012-03-25 | E7: =DATEDIF(D7,$D$2,"Y")+(DATEDIF(D7,$D$2,"YM")/12) -> 9.83 | F7: =VLOOKUP(E7,VACACIONES,3,1) -> 16.00 | G7: =+F7*0.25 -> 4.00 | H7: 15.00 | I7: =+(365+G7+H7)/365 -> 1.0521 | J7: =+I7*C7 -> 379.33 | P7: VACACIONES
B8: 2 | C8: =VLOOKUP(B8,NOMINA,3,0) -> 427.92 | D8: 2010-01-14 | E8: =DATEDIF(D8,$D$2,"Y")+(DATEDIF(D8,$D$2,"YM")/12) -> 12.00 | F8: 16.00 | G8: =+F8*0.25 -> 4.00 | H8: 15.00 | I8: =+(365+G8+H8)/365 -> 1.0521 | J8: =+I8*C8 -> 450.20 | P8: DESDE | Q8: HASTA | R8: DÍAS
B9: 3 | C9: 140.00 | D9: 2015-04-15 | E9: 6.75 | F9: 14.00 | G9: 3.50 | H9: 15.00 | I9: 1.0507 | J9: 147.10 | P9: 0 | Q9: 1 | R9: 6
B10: 4 | C10: 102.68 | D10: 2018-06-18 | E10: 3.58 | F10: 12.00 | G10: 3.00 | H10: 15.00 | I10: 1.0493 | J10: 107.74 | P10: =+Q9+0.01 -> 1.01 | Q10: =+Q9+1 -> 2 | R10: =+R9+2 -> 8
B11: 5 | C11: 600.00 | D11: 2016-03-15 | E11: 5.83 | F11: 14.00 | G11: 3.50 | H11: 15.00 | I11: 1.0507 | J11: 630.41 | P11: =+Q10+0.01 -> 2.01 | Q11: =+Q10+1 -> 3 | R11: =+R10+2 -> 10
B12: 6 | C12: 720.00 | D12: 2017-05-17 | E12: 4.67 | F12: 14.00 | G12: 3.50 | H12: 15.00 | I12: 1.0507 | J12: 756.49 | P12: 3.01 | Q12: 4 | R12: 12
B13: 7 | C13: 840.00 | D13: 2012-03-31 | E13: 9.75 | F13: 16.00 | G13: 4.00 | H13: 15.00 | I13: 1.0521 | J13: 883.73 | P13: =+Q12+0.01 -> 4.01 | Q13: =+Q12+5 -> 9 | R13: =+R12+2 -> 14
B14: 8 | C14: 960.00 | D14: 2012-04-01 | E14: 9.75 | F14: 16.00 | G14: 4.00 | H14: 15.00 | I14: 1.0521 | J14: 1,009.97 | P14: =+Q13+0.01 -> 9.01 | Q14: =+Q13+5 -> 14 | R14: =+R13+2 -> 16
P15: 14.01 | Q15: 19 | R15: 18
P16: 19.01 | Q16: 24 | R16: 20
P17: 24.01 | Q17: 29 | R17: 22
P18: 29.01 | Q18: 34 | R18: 24
P19: =+Q18+0.01 -> 34.01 | Q19: =+Q18+5 -> 39 | R19: =+R18+2 -> 26
P20: 39.01 | Q20: =+Q19+5 -> 44 | R20: =+R19+2 -> 28
